bitfinex/quotes_ETHUSD_20250708
["timestamp","ask_amount","ask_price","bid_price","bid_amount"]
[1751965211114,32.96236353,2550.5,2550.4,0.001]
[1751965211319,36.48747105,2550.5,2550.4,0.001]
[1751965211520,38.23449948,2550.5,2550.4,0.001]
[1751965211710,36.48747105,2550.5,2550.4,0.001]
[1751965212112,38.23451328,2550.5,2550.4,0.001]
[1751965212734,36.48747105,2550.5,2550.4,0.001]
[1751965213433,38.2344935,2550.5,2550.4,0.001]
[1751965214027,37.6844935,2550.5,2550.4,0.001]
[1751965214529,35.93747105,2550.5,2550.4,0.001]
[1751965214914,33.7636651,2550.5,2550.4,0.001]
[1751965215498,26.3896651,2550.5,2550.4,0.001]
[1751965215706,32.01667121,2550.5,2550.4,0.001]
[1751965216332,24.64267121,2550.5,2550.4,0.001]
[1751965216537,32.01667121,2550.5,2550.4,0.7688]
[1751965217032,28.01667121,2550.5,2550.4,0.7688]
[1751965218137,28.01661836,2550.5,2550.4,0.7688]
[1751965218708,40.9189437,2550.5,2550.4,0.001]
[1751965218909,41.56095203,2550.5,2550.4,0.001]
[1751965219814,43.88896119,2550.5,2550.4,0.001]
[1751965220018,41.56080574,2550.5,2550.4,0.001]
[1751965220207,40.9569982,2550.5,2550.4,0.001]
[1751965220934,33.5829982,2550.5,2550.4,0.001]
[1751965221646,40.9589982,2550.5,2550.4,0.001]
[1751965222443,40.9589982,2550.5,2549.9,0.0434474]
[1751965222444,4.93066862,2550.0,2549.9,0.0434474]
[1751965222611,25.0073068,2550.0,2549.9,0.0434474]
[1751965222821,23.26186669,2550.0,2549.9,0.0434474]
[1751965223323,25.58730463,2550.0,2549.9,0.0434474]
[1751965223619,27.26186669,2550.0,2549.9,0.0434474]
[1751965223822,30.72928598,2550.0,2549.9,0.0434474]
[1751965224255,30.72928598,2550.0,2549.4,0.0434474]
[1751965224256,4.47203004,2549.7,2549.4,0.0434474]
[1751965224411,16.21522525,2549.5,2549.4,0.0434474]
[1751965224615,20.22652745,2549.5,2549.4,0.0434474]
[1751965224815,21.66752745,2549.5,2549.4,0.0434474]
[1751965225854,23.44453428,2549.5,2549.4,0.0434474]
[1751965228150,12.30418974,2549.5,2549.4,0.0434474]
[1751965228352,17.66752745,2549.5,2549.4,0.0434474]
[1751965228555,16.27707611,2549.5,2549.4,0.0434474]
[1751965228858,18.91490391,2549.5,2549.4,0.0434474]
[1751965229015,18.77019637,2549.5,2549.4,0.0434474]
[1751965229214,22.23053691,2549.5,2549.4,0.0434474]
[1751965230614,26.23053691,2549.5,2549.4,0.0434474]
[1751965230861,26.23053691,2549.5,2548.9,0.0434474]
[1751965230862,4.47249156,2549.4,2549.3,1e-08]
[1751965231061,4.47249156,2549.4,2548.9,0.0434474]
[1751965231062,14.9322071,2549.0,2548.9,0.0434474]
[1751965231354,31.55005755,2549.0,2548.9,0.0434474]
[1751965231523,14.47387679,2548.5,2548.4,0.0434474]
[1751965231716,27.84687679,2548.5,2548.4,0.0434474]
[1751965232231,26.40587679,2548.5,2548.4,0.0434474]
[1751965232435,21.932,2548.5,2548.4,0.0434474]
[1751965232627,0.196,2548.7,2548.4,0.8675474]
[1751965232945,13.92387679,2548.5,2548.4,0.0434474]
[1751965233141,14.83554063,2548.5,2548.4,0.0434474]
[1751965233342,17.24645786,2548.5,2548.4,0.0434474]
[1751965234214,17.70555786,2548.5,2548.4,1e-08]
[1751965234453,17.70555786,2548.5,2548.1,0.005]
[1751965234454,14.47433874,2548.2,2548.1,0.005]
[1751965234650,14.83600258,2548.2,2548.1,0.005]
[1751965234822,16.045,2548.2,2548.1,0.005]
[1751965235416,20.045,2548.2,2548.1,0.005]
[1751965235730,16.045,2548.2,2548.1,0.005]
[1751965237526,10.0,2548.2,2548.1,0.005]
[1751965237753,16.045,2548.2,2548.1,0.005]
[1751965238056,10.0,2548.2,2548.1,0.005]
[1751965238216,0.28983741,2548.7,2548.1,0.005]
[1751965238421,6.044,2548.6,2548.3,0.8092]
[1751965238631,6.048,2548.5,2548.3,4.73329312]
[1751965238972,10.0,2548.4,2548.3,4.73329312]
[1751965239863,10.0,2548.4,2548.3,4.73338475]
[1751965241656,16.044,2548.5,2548.4,3.92403076]
[1751965242169,6.043,2548.5,2548.3,0.8092]
[1751965242324,6.043,2548.5,2548.4,3.92395575]
[1751965243224,6.043,2548.5,2548.3,5.20717163]
[1751965244057,10.0,2548.8,2548.5,3.92387186]
[1751965244364,10.0,2548.6,2548.4,4.11996663]
[1751965244535,10.5,2548.6,2548.4,4.11996663]
[1751965244742,10.5,2548.6,2548.4,0.196]
[1751965245495,10.5,2548.6,2548.3,0.8092]
[1751965245894,0.5,2548.6,2548.3,0.8092]
[1751965246173,6.539,2548.6,2548.3,4.73338318]
[1751965246373,6.539,2548.6,2548.3,0.8092]
[1751965248372,0.36218815,2548.5,2548.3,0.8092]
[1751965249256,0.36218815,2548.5,2548.2,4.1203328]
[1751965249837,0.36218815,2548.5,2548.2,0.196]
[1751965250073,6.037,2548.4,2548.1,0.8035]
[1751965250267,6.233,2548.4,2548.1,0.8035]
[1751965250691,0.3625123,2548.3,2548.1,0.8035]
[1751965250977,6.233,2548.4,2548.1,0.8035]
[1751965251184,0.36251079,2548.3,2548.1,4.72790352]
[1751965251347,6.233,2548.4,2548.1,4.72790352]
[1751965251547,0.36273224,2548.3,2548.1,4.72790352]
[1751965251746,6.233,2548.4,2548.1,0.8035]
[1751965251943,0.36273427,2548.3,2548.1,0.8035]
[1751965252144,0.36300101,2548.2,2548.1,4.7279312]
[1751965253953,0.36312914,2548.2,2548.1,4.7279312]
[1751965256980,0.36350252,2548.2,2548.1,0.8035]
[1751965257195,0.36350252,2548.2,2548.1,4.72799275]
[1751965259982,0.36395179,2548.2,2548.1,4.72799275]
[1751965260862,0.36395179,2548.2,2548.1,3.92949275]
[1751965261093,0.36395179,2548.2,2548.1,0.005]
[1751965261410,0.36395179,2548.2,2548.1,5.42420265]
[1751965263264,0.36395179,2548.2,2548.1,4.92949275]
[1751965265187,0.36395179,2548.2,2548.1,3.92949275]
[1751965268205,0.36395179,2548.2,2548.1,0.005]
[1751965269197,16.38195179,2548.2,2548.1,0.005]
[1751965270889,16.38225435,2548.2,2548.1,0.005]
[1751965273782,16.3823004,2548.2,2548.1,0.005]
[1751965274304,10.3643004,2548.2,2548.1,0.005]
[1751965274600,16.3823004,2548.2,2548.1,3.92949275]
[1751965274776,16.3823004,2548.2,2548.1,0.005]
[1751965277599,16.3823004,2548.2,2548.1,3.92949275]
[1751965278106,16.3803004,2548.2,2548.1,3.92949275]
[1751965278278,10.3643004,2548.2,2548.1,3.92949275]
[1751965278602,10.3643004,2548.2,2548.1,4.74419275]
[1751965278904,0.3643004,2548.2,2548.1,4.74419275]
[1751965280105,0.3643004,2548.2,2548.1,4.94019275]
[1751965280513,0.3643004,2548.2,2548.1,4.12549275]
[1751965281211,10.3643004,2548.2,2548.1,0.005]
[1751965281427,11.00223044,2548.2,2548.1,0.005]
[1751965282826,11.00233797,2548.2,2548.1,0.005]
[1751965284715,12.40082238,2548.2,2548.1,0.005]
[1751965285095,11.00233797,2548.2,2548.1,0.005]
[1751965285497,12.01143797,2548.2,2548.1,0.005]
[1751965285693,17.33439977,2548.2,2548.1,0.005]
[1751965286320,17.83439977,2548.2,2548.1,0.005]
[1751965286530,19.31239977,2548.2,2548.1,0.005]
[1751965286884,21.05973982,2548.2,2548.1,0.005]
[1751965287083,19.31239977,2548.2,2548.1,0.005]
[1751965288523,23.31239977,2548.2,2548.1,0.005]
[1751965289320,25.63624983,2548.2,2548.1,0.005]
[1751965289493,26.2365165,2548.2,2548.1,0.005]
[1751965289689,25.63977568,2548.2,2548.1,0.005]
[1751965290116,31.65277568,2548.2,2548.1,0.005]
[1751965291295,32.25304235,2548.2,2548.1,0.005]
[1751965291527,32.2519971,2548.2,2548.1,0.005]
[1751965292428,29.92462119,2548.2,2548.1,0.005]
[1751965293291,32.2519971,2548.2,2548.1,0.005]
[1751965295633,29.92462119,2548.2,2548.1,0.005]
[1751965296012,32.77913797,2548.2,2548.1,0.005]
[1751965296343,15.72985942,2548.1,2548.0,0.001]
[1751965296536,30.37247141,2548.1,2548.0,0.001]
[1751965296830,28.04991112,2548.1,2548.0,0.001]
[1751965297039,32.04991112,2548.1,2548.0,0.001]
[1751965298298,32.65017779,2548.1,2548.0,0.001]
[1751965299516,34.97109984,2548.1,2548.0,0.001]
[1751965299829,34.97117031,2548.1,2548.0,0.001]
[1751965300202,34.97114009,2548.1,2548.0,0.001]
[1751965300402,34.96995632,2548.1,2548.0,0.001]
[1751965302232,34.96895632,2548.1,2548.0,0.001]
[1751965303336,34.96882023,2548.1,2548.0,0.001]
[1751965303538,28.35455356,2548.1,2548.0,0.001]
[1751965303749,32.04201657,2548.1,2548.0,0.001]
[1751965304068,24.56101657,2548.1,2548.0,0.001]
[1751965304214,21.03291657,2548.1,2548.0,0.001]
[1751965304543,31.58291657,2548.1,2548.0,0.001]
[1751965304931,31.58491657,2548.1,2548.0,0.001]
[1751965306136,9.62742382,2548.1,2548.0,0.001]
[1751965306322,13.43919035,2548.1,2548.0,0.001]
[1751965306526,23.43919035,2548.1,2548.0,0.001]
[1751965306730,22.59056729,2548.1,2548.0,0.001]
[1751965306924,22.04056729,2548.1,2548.0,0.001]
[1751965307322,22.59056729,2548.1,2548.0,0.001]
[1751965308462,23.98313359,2548.1,2548.0,0.001]
[1751965308860,22.50913359,2548.1,2548.0,0.756]
[1751965309157,22.1465663,2548.1,2548.0,0.756]
[1751965309344,22.50939995,2548.1,2548.0,0.756]
[1751965312258,22.50892045,2548.1,2548.0,0.756]
[1751965312468,25.74197371,2548.1,2548.0,0.756]
[1751965312829,22.50892045,2548.1,2548.0,0.756]
[1751965319272,22.50892045,2548.1,2548.0,0.001]
[1751965322176,29.23223513,2548.1,2548.0,0.001]
[1751965322402,32.92724823,2548.1,2548.0,0.001]
[1751965325303,33.42724823,2548.1,2548.0,0.001]
[1751965326119,33.06389408,2548.1,2548.0,0.001]
[1751965326274,33.42755678,2548.1,2548.0,0.001]
[1751965327106,31.68810152,2548.1,2548.0,0.001]
[1751965327325,34.00863851,2548.1,2548.0,0.001]
[1751965327825,33.50863851,2548.1,2548.0,0.001]
[1751965328924,34.97363851,2548.1,2548.0,0.001]
[1751965332608,33.15310152,2548.1,2548.0,0.001]
[1751965334193,25.68110152,2548.1,2548.0,0.001]
[1751965334388,32.54183485,2548.1,2548.0,0.001]
[1751965334713,34.87096172,2548.1,2548.0,0.001]
[1751965335117,26.40086172,2548.1,2548.0,0.001]
[1751965335291,25.54073485,2548.1,2548.0,0.001]
[1751965335620,23.915229,2548.1,2548.0,0.7703]
[1751965335824,24.465229,2548.1,2548.0,0.7703]
[1751965335988,27.83972175,2548.1,2548.0,0.7703]
[1751965336186,29.58666342,2548.1,2548.0,0.7703]
[1751965336423,29.58666342,2548.1,2548.0,0.001]
[1751965336424,30.13666342,2548.1,2548.0,0.001]
[1751965336589,33.77568662,2548.1,2548.0,0.001]
[1751965337190,34.23478662,2548.1,2548.0,0.001]
[1751965337426,33.08811162,2548.1,2548.0,0.001]
[1751965337812,35.41723849,2548.1,2548.0,0.001]
[1751965340624,35.41764863,2548.1,2548.0,0.001]
[1751965343235,33.61566263,2548.1,2548.0,0.001]
[1751965343736,37.10654405,2548.1,2548.0,0.001]
[1751965343924,33.61566263,2548.1,2548.0,0.001]
[1751965344136,33.61564003,2548.1,2548.0,0.001]
[1751965344326,37.10652145,2548.1,2548.0,0.001]
[1751965344527,36.57938058,2548.1,2548.0,0.001]
[1751965349334,14.47464678,2548.0,2547.9,0.015]
[1751965349504,30.67042247,2548.0,2547.9,0.015]
[1751965349705,31.19756334,2548.0,2547.9,0.015]
[1751965349918,30.67042247,2548.0,2547.9,0.015]
[1751965350118,30.67040622,2548.0,2547.9,0.015]
[1751965350319,34.16484635,2548.0,2547.9,0.015]
[1751965351110,30.67040622,2548.0,2547.9,0.015]
[1751965351306,34.1625069,2548.0,2547.9,0.015]
[1751965352907,27.57224023,2548.0,2547.9,0.015]
[1751965353119,35.02824023,2548.0,2547.9,0.015]
[1751965354157,35.6285069,2548.0,2547.9,0.015]
[1751965355911,35.62817755,2548.0,2547.9,0.015]
[1751965358353,35.26447291,2548.0,2547.9,0.015]
[1751965358526,35.26851166,2548.0,2547.9,0.015]
[1751965362073,15.53416748,2547.9,2547.8,0.03373471]
[1751965362224,32.11355355,2547.9,2547.8,0.03373471]
[1751965363672,31.51328688,2547.9,2547.8,0.03373471]
[1751965363952,31.87707717,2547.9,2547.8,0.03373471]
[1751965364177,25.43697717,2547.9,2547.8,0.03373471]
[1751965364359,32.87997717,2547.9,2547.8,0.03373471]
[1751965365862,13.37329683,2547.9,2547.8,0.03373471]
[1751965366023,9.68519615,2547.9,2547.8,0.03373471]
[1751965366226,17.41442355,2547.9,2547.8,0.03373471]
[1751965366464,25.66819615,2547.9,2547.8,0.03373471]
[1751965366936,26.21819615,2547.9,2547.8,0.03373471]
[1751965367325,22.29339534,2547.9,2547.8,0.03373471]
[1751965367626,20.23519615,2547.9,2547.8,0.03373471]
[1751965367824,26.21719615,2547.9,2547.8,0.03373471]
[1751965368025,25.85340586,2547.9,2547.8,0.03373471]
[1751965368262,27.96358075,2547.9,2547.8,0.03373471]
[1751965369127,26.21735335,2547.9,2547.8,0.03373471]
[1751965369348,26.21835335,2547.9,2547.8,0.03373471]
[1751965369962,27.96458075,2547.9,2547.8,0.03373471]
[1751965370164,26.21835335,2547.9,2547.8,0.03373471]
[1751965371342,26.21735335,2547.9,2547.8,0.03373471]
[1751965372630,26.71735335,2547.9,2547.8,0.03373471]
[1751965372831,26.71735335,2547.9,2547.8,0.81713471]
[1751965372832,5.76055254,2547.9,2547.8,0.81713471]
[1751965373056,11.74055254,2547.9,2547.8,0.81713471]
[1751965373273,11.74061733,2547.9,2547.8,0.81713471]
[1751965373953,5.76061733,2547.9,2547.8,0.81713471]
[1751965374163,11.74061733,2547.9,2547.8,0.81713471]
[1751965375356,7.74061733,2547.9,2547.8,0.81713471]
[1751965376042,7.9363536,2547.9,2547.8,0.81713471]
[1751965376242,6.53974855,2547.9,2547.8,0.81713471]
[1751965376462,0.55974855,2547.9,2547.8,0.81713471]
[1751965376686,16.53774855,2547.9,2547.8,0.81713471]
[1751965379559,16.174,2547.9,2547.8,0.81713471]
[1751965384776,10.196,2547.9,2547.8,0.81713471]
[1751965384979,0.002,2548.1,2547.9,0.814]
[1751965385151,5.972,2548.0,2547.9,0.814]
[1751965385349,0.198,2548.1,2547.9,0.814]
[1751965385566,6.33735775,2548.0,2547.9,0.814]
[1751965386073,6.33635775,2548.0,2547.9,0.814]
[1751965388166,0.36335775,2548.0,2547.9,0.814]
[1751965388371,6.33635775,2548.0,2547.9,0.814]
[1751965392377,6.33644397,2548.0,2547.9,0.814]
[1751965395177,7.7331915,2548.0,2547.9,0.814]
[1751965395380,7.73342166,2548.0,2547.9,0.814]
[1751965397585,8.23342166,2548.0,2547.9,0.814]
[1751965399577,7.73342166,2548.0,2547.9,0.814]
[1751965400592,7.73542166,2548.0,2547.9,0.814]
[1751965400889,7.7358248,2548.0,2547.9,0.814]
[1751965402088,1.7628248,2548.0,2547.9,0.814]
[1751965402282,7.7288248,2548.0,2547.9,0.814]
[1751965402898,1.7628248,2548.0,2547.9,0.814]
[1751965403197,6.33107727,2548.0,2547.9,0.814]
[1751965403390,0.36607727,2548.0,2547.9,1.31097596]
[1751965403692,6.33107727,2548.0,2547.9,1.31097596]
[1751965404081,6.33107727,2548.0,2547.9,0.814]
[1751965405083,0.36607727,2548.0,2547.9,0.814]
[1751965405380,0.36607727,2548.0,2547.9,4.73880081]
[1751965405762,0.36607727,2548.0,2547.9,0.814]
[1751965405963,0.36607727,2548.0,2547.9,4.73880081]
[1751965406164,0.36607727,2548.0,2547.9,5.80856255]
[1751965410392,0.36590438,2548.0,2547.9,5.80856255]
[1751965411306,0.002,2548.0,2547.9,5.80856255]
[1751965411602,0.3658222,2548.0,2547.9,5.80856255]
[1751965411807,0.002,2548.0,2547.9,5.80856255]
[1751965418374,0.002,2548.0,2547.9,4.93480081]
[1751965421007,0.002,2548.0,2547.9,1.01]
[1751965421203,0.002,2548.0,2547.9,0.196]
[1751965428815,0.002,2548.0,2547.9,4.12080081]
[1751965429182,0.002,2548.0,2547.9,4.94810081]
[1751965429386,0.002,2548.0,2547.9,6.47402539]
[1751965430185,0.002,2548.0,2547.9,6.43477739]
[1751965431084,0.36634478,2548.0,2547.9,6.43477739]
[1751965432512,0.36634478,2548.0,2547.9,6.47402539]
[1751965432717,0.002,2548.0,2547.9,6.47402539]
[1751965439821,0.002,2548.0,2547.9,6.43477739]
[1751965443353,0.002,2548.0,2547.9,10.07880081]
[1751965443510,0.002,2548.0,2547.9,0.196]
[1751965443710,0.36632539,2548.0,2547.9,0.196]
[1751965444010,0.36632132,2548.0,2547.9,0.196]
[1751965447107,0.36632132,2548.0,2547.9,4.12080081]
[1751965448221,0.36632132,2548.0,2547.9,0.196]
[1751965450247,0.36632132,2548.0,2547.9,4.12080081]
[1751965451771,0.36632132,2548.0,2547.9,4.16004881]
[1751965451946,0.002,2548.0,2547.9,6.39082145]
[1751965453457,0.002,2548.0,2547.9,6.35157345]
[1751965454464,1e-08,2548.0,2547.9,7.84182145]
[1751965454615,1e-08,2548.0,2547.9,17.84182145]
[1751965454816,1e-08,2548.0,2547.9,18.09645763]
[1751965461957,0.002,2548.4,2548.3,3.92418475]
[1751965462266,0.002,2548.4,2548.3,11.47253396]
[1751965462428,1e-08,2548.4,2548.3,11.66853396]
[1751965462762,1e-08,2548.4,2548.3,21.66853396]
[1751965463173,1e-08,2548.4,2548.3,22.21853396]
[1751965472210,1e-08,2548.4,2548.3,22.41180858]
[1751965476821,1e-08,2548.4,2548.3,16.45580858]
[1751965477002,1e-08,2548.4,2548.3,23.85980858]
[1751965488727,1e-08,2548.4,2548.3,23.86080858]
[1751965494530,1e-08,2548.4,2548.3,15.90680858]
[1751965494702,1e-08,2548.4,2548.3,23.30980858]
[1751965495321,1e-08,2548.4,2548.3,15.90680858]
[1751965495494,1e-08,2548.4,2548.3,23.30980858]
[1751965496029,1e-08,2548.4,2548.3,23.85980858]
[1751965496842,1e-08,2548.4,2548.3,16.45680858]
[1751965497130,1e-08,2548.4,2548.3,23.85980858]
[1751965501233,1e-08,2549.0,2548.3,23.85980858]
[1751965501414,0.002,2549.2,2549.1,3.92295319]
[1751965501612,0.002,2549.2,2549.1,10.07195319]
[1751965505726,1e-08,2549.2,2549.1,10.07195319]
[1751965506037,1e-08,2549.3,2549.2,3.9227993]
[1751965506239,1e-08,2549.3,2549.2,3.96202729]
[1751965506536,1e-08,2549.3,2549.2,5.33057194]
[1751965507740,1e-08,2549.3,2549.2,5.6241155]
[1751965509256,1e-08,2549.8,2549.7,3.92203004]
[1751965509558,1e-08,2549.8,2549.7,12.10887925]
[1751965511837,1e-08,2549.8,2549.7,22.10887925]
[1751965514239,1e-08,2549.8,2549.7,22.87457925]
[1751965516456,1e-08,2549.8,2549.7,23.42457925]
[1751965517339,1e-08,2550.3,2550.2,3.92126107]
[1751965517685,1e-08,2550.3,2550.2,9.91147368]
[1751965517842,1e-08,2550.3,2550.2,9.87226107]
[1751965519262,1e-08,2550.3,2550.2,10.06826107]
[1751965521966,1e-08,2550.3,2550.2,11.51626107]
[1751965522268,1e-08,2550.3,2550.2,12.92403371]
[1751965528474,1e-08,2550.3,2550.2,13.47403371]
[1751965528775,0.002,2550.4,2550.3,4.72760732]
[1751965528776,1e-08,2550.4,2550.3,4.72760732]
[1751965528978,1e-08,2550.4,2550.3,4.76681839]
[1751965529474,1e-08,2550.5,2550.4,3.92095357]
[1751965529675,1e-08,2550.5,2550.4,20.65480278]
[1751965529846,1e-08,2550.5,2550.4,20.85080278]
[1751965534460,1e-08,2550.5,2550.4,21.40080278]
[1751965534657,1e-08,2550.7,2550.6,13.92064612]
[1751965534862,1e-08,2550.7,2550.6,20.69624612]
[1751965535060,1e-08,2550.7,2550.6,21.63325763]
[1751965537782,1e-08,2550.7,2550.6,22.18325763]
[1751965539981,1e-08,2550.7,2550.6,22.47068894]
[1751965549432,1e-08,2550.9,2550.8,3.92033871]
[1751965549699,1e-08,2550.9,2550.8,21.35354209]
[1751965549888,1e-08,2550.9,2550.8,23.46811135]
[1751965550084,1e-08,2550.9,2550.8,24.25161135]
[1751965551885,1e-08,2550.9,2550.8,16.85761135]
[1751965552204,1e-08,2550.9,2550.8,24.25161135]
[1751965554379,1e-08,2550.9,2550.8,16.85761135]
[1751965554909,1e-08,2550.9,2550.8,24.25061135]
[1751965558024,1e-08,2550.9,2550.8,16.85761135]
[1751965558182,1e-08,2550.9,2550.8,24.25061135]
[1751965559717,1e-08,2550.9,2550.8,16.85761135]
[1751965559881,1e-08,2550.9,2550.8,22.91711135]
[1751965563307,1e-08,2550.9,2550.8,5.52411135]
[1751965563607,1e-08,2550.9,2550.8,22.91611135]
[1751965565516,1e-08,2550.9,2550.8,15.52411135]
[1751965565714,0.45910001,2550.9,2550.8,21.46811135]
[1751965566937,0.45910001,2550.9,2550.8,5.52411135]
[1751965567107,0.45910001,2550.9,2550.8,11.46811135]
[1751965567816,0.45910001,2550.9,2550.8,5.52411135]
[1751965568005,0.45910001,2550.9,2550.8,10.06033871]
[1751965570821,1e-08,2550.9,2550.8,10.06033871]
[1751965576730,1e-08,2550.9,2550.8,10.06133871]
[1751965577918,1e-08,2550.9,2550.8,10.82613871]
[1751965578231,1e-08,2550.9,2550.8,12.30079836]
[1751965578831,1e-08,2550.9,2550.8,11.53599836]
[1751965589743,1e-08,2550.9,2550.8,22.34579836]
[1751965592038,1e-08,2550.9,2550.8,21.53499836]
[1751965597257,1e-08,2550.9,2550.8,22.32769836]
[1751965599764,1e-08,2550.9,2550.8,22.87769836]
[1751965601025,1e-08,2550.9,2550.8,22.98199836]
[1751965604264,1e-08,2550.9,2550.8,23.53199836]
[1751965604430,1e-08,2550.9,2550.8,24.30809836]
[1751965616567,1e-08,2550.9,2550.8,16.14199836]
[1751965616779,1e-08,2550.9,2550.8,12.97999836]
[1751965619256,1e-08,2550.9,2550.8,5.59199836]
[1751965619454,0.45910001,2550.9,2550.8,11.53399836]
[1751965619660,0.45910001,2550.9,2550.8,10.05933871]
[1751965621293,0.45910001,2550.9,2550.8,4.11733871]
[1751965621605,0.45910001,2550.9,2550.8,10.05933871]
[1751965622753,0.45910001,2550.9,2550.8,0.197]
[1751965623065,0.45910001,2550.9,2550.8,6.139]
[1751965623889,0.45910001,2550.9,2550.8,10.05933871]
[1751965634903,1e-08,2550.9,2550.8,10.05933871]
[1751965635102,1e-08,2550.9,2550.8,11.45732032]
[1751965639077,1e-08,2550.9,2550.8,22.21662032]
[1751965644721,1e-08,2550.9,2550.8,22.76662032]
[1751965646285,1e-08,2550.9,2550.8,24.21062032]
[1751965652207,1e-08,2550.9,2550.8,23.65962032]
[1751965652519,1e-08,2550.9,2550.8,12.90032032]
[1751965652726,1e-08,2550.9,2550.8,22.90032032]
[1751965668835,1e-08,2550.9,2550.8,21.45532032]
[1751965672640,1e-08,2550.9,2550.8,15.51532032]
[1751965672843,1e-08,2550.9,2550.8,20.05633871]
[1751965673137,1e-08,2550.9,2550.8,10.05633871]
[1751965674208,1e-08,2550.9,2550.8,0.197]
[1751965674449,0.45910001,2550.9,2550.8,0.197]
[1751965675346,0.45910001,2550.9,2550.8,4.11733871]
[1751965681328,1e-08,2550.9,2550.8,4.11733871]
[1751965686043,1e-08,2550.9,2550.8,10.05733871]
[1751965687450,0.45910001,2550.9,2550.8,10.05733871]
[1751965690118,0.45910001,2550.9,2550.8,10.05633871]
[1751965697684,1e-08,2550.9,2550.8,10.05633871]
[1751965702397,1e-08,2550.9,2550.8,11.5355311]
[1751965704097,1e-08,2550.9,2550.8,0.197]
[1751965704298,1e-08,2550.9,2550.8,6.136]
[1751965704471,0.45910001,2550.9,2550.8,0.197]
[1751965705191,0.45910001,2550.9,2550.8,0.001]
[1751965707164,0.45910001,2550.9,2550.8,3.92133871]
[1751965707699,0.45910001,2550.9,2550.8,0.001]
[1751965709884,1e-08,2550.9,2550.8,0.001]
[1751965710387,1e-08,2550.9,2550.8,3.92133871]
[1751965716098,1e-08,2550.9,2550.8,4.11733871]
[1751965721305,1e-08,2550.9,2550.8,4.93913871]
[1751965721503,1e-08,2550.9,2550.8,6.45820455]
[1751965722010,1e-08,2550.9,2550.8,6.41900117]
[1751965723287,1e-08,2550.9,2550.8,12.35800117]
[1751965734014,1e-08,2550.9,2550.8,22.35800117]
[1751965734815,1e-08,2550.9,2550.8,23.80200117]
[1751965736016,1e-08,2550.9,2550.8,16.41900117]
[1751965736179,1e-08,2550.9,2550.8,23.80000117]
[1751965740426,1e-08,2550.9,2550.8,23.80000117]
[1751965752217,1e-08,2550.9,2550.8,24.35000117]
[1751965766429,1e-08,2550.9,2550.8,18.41300117]
[1751965766634,1e-08,2550.9,2550.8,24.34800117]
[1751965766821,1e-08,2550.9,2550.8,16.96900117]
[1751965767005,1e-08,2550.9,2550.8,24.34700117]
[1751965768538,1e-08,2550.9,2550.8,16.96900117]
[1751965768718,1e-08,2550.9,2550.8,24.34700117]
[1751965768916,1e-08,2550.9,2550.8,23.79700117]
[1751965769334,1e-08,2550.9,2550.8,7.04020117]
[1751965769538,1e-08,2550.9,2550.8,5.59720117]
[1751965769741,1e-08,2550.9,2550.8,15.59720117]
[1751965770034,1e-08,2550.9,2550.8,20.05233871]
[1751965770447,1e-08,2550.9,2550.8,4.11733871]
[1751965770618,1e-08,2550.9,2550.8,10.05233871]
[1751965776444,1e-08,2550.9,2550.8,4.11733871]
[1751965776650,1e-08,2550.9,2550.8,10.05233871]
[1751965789065,1e-08,2550.9,2550.8,4.11733871]
[1751965789243,1e-08,2550.9,2550.8,10.05233871]
[1751965789443,1e-08,2550.9,2550.8,4.11733871]
[1751965789751,1e-08,2550.9,2550.8,10.05233871]
[1751965808383,1e-08,2550.9,2550.8,11.52689117]
[1751965822992,1e-08,2550.9,2550.8,11.52589117]
[1751965823194,1e-08,2550.9,2550.8,10.05133871]
[1751965824756,1e-08,2550.9,2550.8,4.11733871]
[1751965825019,1e-08,2550.9,2550.8,10.05033871]
[1751965827029,1e-08,2550.9,2550.8,0.197]
[1751965827342,0.45910001,2550.9,2550.8,0.001]
[1751965827489,0.82451797,2550.9,2550.8,0.001]
[1751965827694,1.29894607,2550.9,2550.8,0.001]
[1751965828219,0.93353964,2550.9,2550.8,0.001]
[1751965828415,0.45910001,2550.9,2550.8,0.001]
[1751965845555,1e-08,2550.9,2550.8,3.92133871]
[1751965845847,1e-08,2550.9,2550.8,4.11733871]
[1751965846223,1e-08,2550.9,2550.8,10.05033871]
[1751965848139,1e-08,2550.9,2550.8,10.86223871]
[1751965849046,1e-08,2550.9,2550.8,12.34050819]
[1751965901858,1e-08,2550.9,2550.8,22.34050819]
[1751965902025,1e-08,2550.9,2550.8,22.89050819]
[1751965902359,0.002,2551.6,2551.5,4.68436317]
[1751965902557,0.002,2551.6,2551.5,10.8477558]
[1751965902738,0.002,2551.6,2551.5,10.80856317]
[1751965902933,0.002,2551.6,2551.5,4.11446317]
[1751965903147,0.002,2551.6,2551.5,10.04346317]
[1751965904461,0.002,2551.6,2551.5,4.11446317]
[1751965904757,0.002,2551.6,2551.5,10.04346317]
[1751965905766,0.002,2551.6,2551.5,4.11446317]
[1751965905931,0.002,2551.6,2551.5,10.04246317]
[1751965906965,0.002,2551.6,2551.5,4.11446317]
[1751965907167,0.002,2551.6,2551.5,10.04246317]
[1751965908253,0.002,2551.6,2551.5,11.49782705]
[1751965926175,0.002,2551.6,2551.5,12.29322705]
[1751965927685,0.0433079,2551.9,2551.7,14.72955599]
[1751965927890,0.0433079,2551.9,2551.7,20.65555599]
[1751965928189,0.0433079,2551.9,2551.7,22.13382547]
[1751965929095,0.0433079,2551.9,2551.8,3.91880241]
[1751965929264,0.0433079,2551.9,2551.8,4.71699043]
[1751965930985,0.002,2552.3,2551.9,3.91864884]
[1751965931176,0.002,2552.3,2551.9,11.29901272]
[1751965932883,0.002,2552.3,2551.9,12.12601272]
[1751965934581,0.4611,2552.3,2551.9,12.12601272]
[1751965934893,0.4611,2552.3,2551.9,11.29901272]
[1751965936769,0.002,2552.3,2551.9,11.29901272]
[1751965937696,0.002,2552.3,2551.9,11.49421272]
[1751965942285,0.002,2552.3,2551.9,12.31351272]